fUSD/lending_fUSD_20250208
["ID","MTS","AMOUNT","RATE_DAILY","PERIOD"]
[352296195,1739030812138,-500.0,0.00010407,2]
[352296196,1739030812151,-500.0,0.00010407,2]
[352296197,1739030812171,-480.29,0.00010406,2]
[352296198,1739030812181,-19.71,0.00010407,2]
[352296199,1739030812192,-500.0,0.00010407,2]
[352296200,1739030812207,-500.0,0.00010407,2]
[352296201,1739030812219,-300.15467016,0.00010407,2]
[352296202,1739030812229,-199.84532984,0.00010407,2]
[352296203,1739030812241,-300.15467016,0.00010407,2]
[352296204,1739030812250,-199.84532984,0.00010408,2]
[352296205,1739030812262,-154.73467016,0.00010408,2]
[352296206,1739030812272,-416.13479973,0.00010408,2]
[352296207,1739030812284,-56.47520027,0.00010408,2]
[352296208,1739030812294,-443.52479973,0.00010542,2]
[352296209,1739030812309,-56.47520027,0.00010542,2]
[352296210,1739030812319,-422.81,0.00010542,2]
[352296211,1739030812330,-20.71479973,0.00010543,2]
[352296212,1739030812346,-479.28520027,0.00010543,2]
[352296213,1739030812357,-20.71479973,0.00010543,2]
[352296214,1739030812370,-251.48520027,0.00010543,2]
[352296215,1739030812381,-248.51479973,0.00010543,2]
[352296216,1739030812414,-251.48520027,0.00010543,2]
[352296217,1739030812423,-248.51479973,0.00010543,2]
[352296218,1739030812435,-69.10520027,0.00010543,2]
[352296219,1739030812446,-157.04067113,0.00010543,2]
[352296220,1739030812459,-342.95932887,0.00010543,2]
[352296221,1739030812468,-157.04067113,0.00010543,2]
[352296222,1739030812480,-342.95932887,0.00010543,2]
[352296223,1739030812495,-157.04067113,0.00010543,2]
[352296224,1739030812508,-342.95932887,0.00010543,2]
[352296225,1739030812518,-163.03067113,0.00010543,2]
[352296226,1739030812530,-142.40932887,0.00010543,2]
[352296227,1739030812541,-360.73974458,0.00010544,2]
[352296228,1739030812554,-504.43781728,0.00010544,2]
[352296229,1739030812566,-228.54243814,0.00010544,2]
[352296230,1739030812576,-271.45756186,0.00010544,2]
[352296231,1739030812589,-228.54243814,0.00010544,2]
[352296232,1739030812599,-387.3649388,0.00010544,2]
[352296233,1739030812614,-112.6350612,0.00010544,2]
[352296234,1739030812894,-387.3649388,0.00010544,2]
[352296235,1739030812909,-66.6950612,0.00010544,2]
[352296236,1739030812918,-433.3049388,0.00010544,2]
[352296237,1739030812938,-66.6950612,0.00010544,2]
[352296238,1739030812956,-433.3049388,0.00010544,2]
[352296239,1739030812976,-66.6950612,0.00010544,2]
[352296240,1739030812986,-433.3049388,0.00010544,2]
[352296241,1739030812997,-66.6950612,0.00010544,2]
[352296242,1739030813008,-472.48845348,0.00010544,2]
[352296243,1739030813020,-500.0,0.00010544,2]
[352296244,1739030813127,-500.0,0.00010134,2]
[352296245,1739030813140,-500.0,0.00010544,2]
[352296246,1739030813152,-500.0,0.00010544,2]
[352296247,1739030813164,-500.0,0.00010544,2]
[352296248,1739030813181,-500.0,0.00010544,2]
[352296249,1739030813193,-500.0,0.00010544,2]
[352296250,1739030813204,-500.0,0.00010544,2]
[352296251,1739030813217,-324.44154652,0.00010544,2]
[352296252,1739030813226,-151.04,0.00010544,2]
[352296253,1739030813236,-24.51845348,0.00010679,2]
[352296254,1739030813248,-475.48154652,0.00010679,2]
[352296255,1739030813258,-24.51845348,0.0001068,2]
[352296256,1739030813271,-370.10154652,0.0001068,2]
[352296257,1739030813281,-129.89845348,0.0001068,2]
[352296258,1739030813294,-370.10154652,0.0001068,2]
[352296259,1739030813306,-129.89845348,0.0001068,2]
[352296260,1739030813318,-370.10154652,0.0001068,2]
[352296261,1739030813328,-201.10845348,0.0001068,2]
[352296262,1739030813341,-435.85154652,0.0001068,2]
[352296263,1739030813351,-105.50845348,0.0001068,2]
[352296264,1739030813363,-394.49154652,0.0001068,2]
[352296265,1739030813374,-105.50845348,0.00010681,2]
[352296266,1739030813386,-500.0,0.00010681,2]
[352296267,1739030813398,-488.21154652,0.00010681,2]
[352296268,1739030813408,-11.78845348,0.00010681,2]
[352296269,1739030813424,-488.21154652,0.00010681,2]
[352296270,1739030813433,-11.78845348,0.00010681,2]
[352296271,1739030813458,-500.0,0.00010269,2]
[352296272,1739030813470,-488.21154652,0.00010681,2]
[352296273,1739030813479,-11.78845348,0.00010681,2]
[352296274,1739030813496,-488.21154652,0.00010681,2]
[352296275,1739030813505,-11.78845348,0.00010681,2]
[352296276,1739030813517,-454.32154652,0.00010681,2]
[352296277,1739030813526,-45.67845348,0.00010681,2]
[352296278,1739030813547,-500.0,0.00010269,2]
[352296279,1739030813559,-56.70519754,0.00010269,2]
[352296280,1739030813568,-443.29480246,0.00010681,2]
[352296281,1739030813588,-500.0,0.00010269,2]
[352296282,1739030813600,-1.351091,0.00010269,2]
[352296283,1739030813609,-11.02674406,0.00010681,2]
[352296284,1739030813619,-487.62216494,0.00010681,2]
[352296285,1739030813630,-500.0,0.00010681,2]
[352296286,1739030813651,-324.2,0.00010406,2]
[352296287,1739030813660,-175.8,0.00010681,2]
[352296288,1739030813672,-500.0,0.00010681,2]
[352296289,1739030813683,-659.96,0.00010681,2]
[352296290,1739030813698,-500.0,0.00010681,2]
[352296291,1739030813710,-500.0,0.00010681,2]
[352296292,1739030813721,-500.0,0.00010681,2]
[352296293,1739030813739,-473.54783506,0.00010681,2]
[352296294,1739030813748,-161.44216494,0.00010789,2]
[352296295,1739030813759,-48.05000506,0.00010789,2]
[352296296,1739030813769,-408.11999494,0.00010816,2]
[352296297,1739030813780,-91.88000506,0.00010816,2]
[352296298,1739030813790,-463.99999494,0.00010817,2]
[352296299,1739030813802,-36.00000506,0.00010817,2]
[352296300,1739030813811,-463.99999494,0.00010818,2]
[352296301,1739030813842,-629.72000506,0.00010818,2]
[352296302,1739030813852,-554.16,0.00010818,2]
[352296303,1739030813861,-121.07999494,0.00010818,2]
[352296304,1739030813918,-476.37000506,0.00010818,2]
[352296305,1739030813927,-23.62999494,0.00010818,2]
[352296306,1739030813939,-476.37000506,0.00010818,2]
[352296307,1739030813948,-23.62999494,0.00010818,2]
[352296308,1739030813963,-476.37000506,0.00010818,2]
[352296309,1739030813972,-23.62999494,0.00010818,2]
[352296310,1739030813984,-500.0,0.00010818,2]
[352296311,1739030813995,-500.0,0.00010818,2]
[352296312,1739030814007,-628.64,0.00010818,2]
[352296313,1739030814018,-500.0,0.00010818,2]
[352296314,1739030814031,-500.0,0.00010818,2]
[352296315,1739030814043,-500.0,0.00010818,2]
[352296316,1739030814055,-500.0,0.00010818,2]
[352296317,1739030814066,-556.74,0.00010818,2]
[352296318,1739030814079,-87.92000506,0.00010818,2]
[352296319,1739030814089,-162.09347596,0.000109,2]
[352296320,1739030814099,-249.98651898,0.000109,2]
[352296321,1739030814110,-500.0,0.000109,2]
[352296322,1739030814126,-500.0,0.000109,2]
[352296323,1739030814137,-500.0,0.000109,2]
[352296324,1739030814149,-500.0,0.000109,2]
[352296325,1739030814160,-500.0,0.000109,2]
[352296326,1739030814174,-500.0,0.000109,2]
[352296327,1739030814185,-500.0,0.000109,2]
[352296328,1739030814197,-500.0,0.000109,2]
[352296329,1739030814208,-500.0,0.000109,2]
[352296330,1739030814227,-500.0,0.00010269,2]
[352296331,1739030814238,-500.0,0.000109,2]
[352296332,1739030814249,-500.0,0.000109,2]
[352296333,1739030814260,-492.85,0.000109,2]
[352296334,1739030814271,-500.0,0.000109,2]
[352296335,1739030814284,-500.0,0.000109,2]
[352296336,1739030814296,-244.53,0.000109,2]
[352296337,1739030814309,-500.0,0.000109,2]
[352296338,1739030814320,-500.0,0.000109,2]
[352296339,1739030814340,-241.29,0.00010406,2]
[352296340,1739030814349,-258.71,0.000109,2]
[352296341,1739030814360,-500.0,0.000109,2]
[352296342,1739030814425,-500.0,0.000109,2]
[352296343,1739030814492,-571.21,0.000109,2]
[352296344,1739030814533,-5.97761972,0.000109,2]
[352296345,1739030814543,-162.09347596,0.000109,2]
[352296346,1739030814553,-331.92890432,0.000109,2]
[352296347,1739030814564,-113.05808414,0.000109,2]
[352296348,1739030814574,-386.94191586,0.00010953,2]
[352296349,1739030814587,-113.05808414,0.00010953,2]
[352296350,1739030814596,-386.94191586,0.00010954,2]
[352296351,1739030814608,-113.05808414,0.00010954,2]
[352296352,1739030814617,-386.94191586,0.00010955,2]
[352296353,1739030814629,-500.0,0.00010955,2]
[352296354,1739030814641,-206.77808414,0.00010955,2]
[352296355,1739030814651,-293.22191586,0.00010955,2]
[352296356,1739030814663,-259.67808414,0.00010955,2]
[352296357,1739030814672,-27.39191586,0.00010955,2]
[352296358,1739030814683,-281.1,0.00010955,2]
[352296359,1739030814698,-164.97,0.00010955,2]
[352296360,1739030814709,-26.53808414,0.00010955,2]
[352296361,1739030814719,-596.39191586,0.00010955,2]
[352296362,1739030814730,-500.0,0.00010955,2]
[352296363,1739030814749,-500.0,0.00010955,2]
[352296364,1739030814760,-500.0,0.00010955,2]
[352296365,1739030814771,-500.0,0.00010955,2]
[352296366,1739030814784,-659.96,0.00010955,2]
[352296367,1739030814795,-500.0,0.00010955,2]
[352296368,1739030814807,-500.0,0.00010955,2]
[352296369,1739030814828,-500.0,0.0001027,2]
[352296370,1739030814839,-40.57808414,0.00010955,2]
[352296371,1739030814848,-459.42191586,0.00011,3]
[352296372,1739030814860,-500.0,0.00011,3]
[352296373,1739030814870,-1304.96,0.00011,3]
[352296374,1739030814883,-500.0,0.00011,3]
[352296375,1739030814898,-500.0,0.00011,3]
[352296376,1739030814909,-603.96,0.00011,3]
[352296377,1739030814921,-500.0,0.00011,3]
[352296378,1739030814936,-155.966823,0.00011,3]
[352296379,1739030814956,-500.0,0.00010407,2]
[352296380,1739030814969,-500.0,0.00011,3]
[352296381,1739030814981,-500.0,0.00011,3]
[352296382,1739030814994,-541.39,0.00011,3]
[352296383,1739030815006,-500.0,0.00011,3]
[352296384,1739030815019,-500.0,0.00011,3]
[352296385,1739030815032,-500.0,0.00011,3]
[352296386,1739030815043,-500.0,0.00011,3]
[352296387,1739030815054,-638.18,0.00011,3]
[352296388,1739030815074,-238.57,0.00010544,2]
[352296389,1739030815090,-261.43,0.00010544,2]
[352296390,1739030815099,-238.57,0.00011,3]
[352296391,1739030815110,-514.55,0.00011,3]
[352296392,1739030815122,-500.0,0.00011,3]
[352296393,1739030815133,-500.0,0.00011,3]
[352296394,1739030815157,-500.0,0.00010681,2]
[352296395,1739030815170,-500.0,0.00011,3]
[352296396,1739030815182,-500.0,0.00011,3]
[352296397,1739030815193,-500.0,0.00011,3]
[352296398,1739030815219,-500.0,0.00010818,2]
[352296399,1739030815233,-500.0,0.00011,3]
[352296400,1739030815244,-500.0,0.00011,3]
[352296401,1739030815259,-571.21,0.00011,3]
[352296402,1739030815272,-500.0,0.00011,3]
[352296403,1739030815286,-500.0,0.00011,3]
[352296404,1739030815300,-602.39,0.00011,3]
[352296405,1739030815326,-1069.72,0.00011,3]
[352296406,1739030815401,-500.0,0.00010955,2]
[352296407,1739030815422,-500.0,0.00011,3]
[352296408,1739030815435,-500.0,0.00011,3]
[352296409,1739030815447,-402.7,0.00011,3]
[352296410,1739030815459,-500.0,0.00011,3]
[352296411,1739030815471,-500.0,0.00011,3]
[352296412,1739030815482,-659.96,0.00011,3]
[352296413,1739030815494,-500.0,0.00011,3]
[352296414,1739030815506,-253.39,0.00011,3]
[352296415,1739030815526,-500.0,0.00011,3]
[352296416,1739030815541,-622.12,0.00011,3]
[352296417,1739030815554,-344.91560303,0.00011,3]
[352296418,1739030815569,-1304.96,0.00011,3]
[352296419,1739030815589,-500.0,0.00010269,2]
[352296420,1739030815600,-500.0,0.00011,3]
[352296421,1739030815611,-500.0,0.00011,3]
[352296422,1739030815622,-500.0,0.00011,3]
[352296423,1739030815642,-500.0,0.00010269,2]
[352296424,1739030815661,-500.0,0.00010268,2]
[352296425,1739030815672,-500.0,0.00011,3]
[352296426,1739030815882,-500.0,0.00011,3]
[352296427,1739030815910,-500.0,0.00011,3]
[352296428,1739030815959,-392.52,0.00011,3]
[352296429,1739030815970,-500.0,0.00011,3]
[352296430,1739030815981,-338.22,0.00011,3]
[352296431,1739030815992,-500.0,0.00011,3]
[352296432,1739030816003,-500.0,0.00011,3]
[352296433,1739030816022,-500.0,0.00010405,2]
[352296434,1739030816040,-94.42,0.00010405,2]
[352296435,1739030816049,-405.58,0.00011,3]
[352296436,1739030816060,-553.13,0.00011,3]
[352296437,1739030816071,-500.0,0.00011,3]
[352296438,1739030816082,-500.0,0.00011,3]
[352296439,1739030816093,-571.21,0.00011,3]
[352296440,1739030816104,-500.0,0.00011,3]
[352296441,1739030816115,-500.0,0.00011,3]
[352296442,1739030816126,-173.76,0.00011,3]
[352296443,1739030816142,-500.0,0.00011,3]
[352296444,1739030816152,-500.0,0.00011,3]
[352296445,1739030816171,-580.74,0.00011,3]
[352296446,1739030816182,-580.13,0.00011,3]
[352296447,1739030816193,-1000.0,0.00011,3]
[352296448,1739030816205,-2160.92086718,0.00011,3]
[352296449,1739030816216,-659.96,0.00011,3]
[352296450,1739030816227,-500.0,0.00011,3]
[352296451,1739030816238,-406.98,0.00011,3]
[352296452,1739030816249,-1304.96,0.00011,3]
[352296453,1739030816267,-500.0,0.00011,3]
[352296454,1739030816278,-542.93,0.00011,3]
[352296455,1739030816289,-155.966823,0.00011,3]
[352296456,1739030816303,-500.0,0.00011,3]
[352296457,1739030816315,-346.46,0.00011,3]
[352296458,1739030816326,-500.0,0.00011,3]
[352296459,1739030816339,-500.0,0.00011,3]
[352296460,1739030816354,-500.0,0.00011,3]
[352296461,1739030816560,-648.42,0.00011,3]
[352296462,1739030816571,-467.6,0.00011,3]
[352296463,1739030816582,-500.0,0.00011,3]
[352296464,1739030816592,-500.0,0.00011,3]
[352296465,1739030816603,-323.4,0.00011,3]
[352296466,1739030816614,-500.0,0.00011,3]
[352296467,1739030816625,-500.0,0.00011,3]
[352296468,1739030816636,-500.0,0.00011,3]
[352296469,1739030816647,-164.35,0.00011,3]
[352296470,1739030816658,-571.21,0.00011,3]
[352296471,1739030816669,-500.0,0.00011,3]
[352296472,1739030816680,-500.0,0.00011,3]
[352296473,1739030816691,-317.57,0.00011,3]
[352296474,1739030816702,-500.0,0.00011,3]
[352296475,1739030816713,-2160.92086718,0.00011,3]
[352296476,1739030816724,-2652.0,0.00011,3]
[352296477,1739030816735,-2160.92086718,0.00011,3]
[352296478,1739030816754,-500.0,0.00010269,2]
[352296479,1739030816764,-159.96,0.00011,3]
[352296480,1739030816775,-266.53444009,0.00011,3]
[352296481,1739030816814,-1304.96,0.00011,3]
[352296482,1739030816863,-500.0,0.00011,3]
[352296483,1739030816881,-500.0,0.00011,3]
[352296484,1739030816893,-500.0,0.00011,3]
[352296485,1739030816904,-456.68,0.00011,3]
[352296486,1739030816918,-632.74,0.00011,3]
[352296487,1739030816929,-455.73,0.00011,3]
[352296488,1739030816941,-168.09420084,0.00011,3]
[352296489,1739030816952,-500.0,0.00011,3]
[352296490,1739030816963,-500.0,0.00011,3]
[352296491,1739030816973,-500.0,0.00011,3]
[352296492,1739030816992,-571.21,0.00011,3]
[352296493,1739030817003,-534.32,0.00011,3]
[352296494,1739030817014,-500.0,0.00011,3]
[352296495,1739030817025,-375.81,0.00011,3]
[352296496,1739030817036,-2912.82467326,0.00011,3]
[352296497,1739030817047,-826668.97635806,0.00011,3]
[352296498,1739030823804,162.63,9.893e-05,2]
[352296499,1739030861699,1003.5,8.219e-05,2]
[352297238,1739030895040,500.0,0.0002,120]
[352297239,1739030903487,250.0,9.624e-05,2]
[352297240,1739030912784,197.53,9.624e-05,2]
[352297241,1739030955638,-150.0,0.00010132,2]
[352297242,1739030955672,-300.0,0.00010132,2]
[352297243,1739030955705,-500.0,0.00010133,2]
[352297244,1739030955739,-500.0,0.00010133,2]
[352297245,1739030955772,-500.0,0.00010133,2]
[352297246,1739030955805,-500.0,0.00010133,2]
[352297247,1739030955837,-1021.29,0.00010133,2]
[352297248,1739030955870,-3456.55,0.00010133,2]
[352297249,1739030955902,-835.82,0.00010133,2]
[352297250,1739030955933,-518.36,0.00010133,2]
[352297251,1739030955964,-1096.95,0.00010133,2]
[352297252,1739030955995,-715.31,0.00010133,2]
[352297253,1739030956026,-500.0,0.00010134,2]
[352297254,1739030956057,-500.0,0.00010134,2]
[352297255,1739030956088,-500.0,0.00010134,2]
[352297256,1739030956118,-500.0,0.00010134,2]
[352297257,1739030956148,-602.05,0.00010134,2]
[352297258,1739030956180,-500.0,0.00010134,2]
[352297259,1739030956214,-500.0,0.00010134,2]
[352297260,1739030956246,-621.69,0.00010134,2]
[352297261,1739030956278,-500.0,0.00010134,2]
[352297262,1739030956309,-642.07,0.00010134,2]
[352297263,1739030956339,-898.44,0.00010134,2]
[352297264,1739030956373,-774.39,0.00010134,2]
[352297265,1739030956405,-500.0,0.00010134,2]
[352297266,1739030956436,-200.0,0.000102,3]
[352297267,1739030956468,-802.19,0.00010268,2]
[352297268,1739030956499,-742.6,0.00010268,2]
[352297269,1739030956532,-1336.88,0.00010268,2]
[352297270,1739030956564,-1153.22,0.00010268,2]
[352297271,1739030956598,-1569.86,0.00010268,2]
[352297272,1739030956631,-2381.36,0.00010268,2]
[352297273,1739030956662,-500.0,0.00010268,2]
[352297274,1739030956694,-1481.74,0.00010268,2]
[352297275,1739030956726,-1482.26,0.00010268,2]
[352297276,1739030956758,-500.0,0.00010269,2]
[352297277,1739030956789,-500.0,0.00010269,2]
[352297278,1739030956820,-500.0,0.00010269,2]
[352297279,1739030956851,-500.0,0.00010269,2]
[352297280,1739030956880,-500.0,0.00010269,2]
[352297281,1739030956911,-500.0,0.00010269,2]
[352297282,1739030956941,-500.0,0.00010269,2]
[352297283,1739030956970,-500.0,0.00010269,2]
[352297284,1739030957000,-500.0,0.00010269,2]
[352297285,1739030957030,-500.0,0.00010269,2]
[352297286,1739030957063,-500.0,0.00010269,2]
[352297287,1739030957095,-500.0,0.00010269,2]
[352297288,1739030957127,-500.0,0.00010269,2]
[352297289,1739030957159,-500.0,0.00010269,2]
[352297290,1739030957193,-500.0,0.00010269,2]
[352297291,1739030957226,-174.462348,0.00010269,2]
[352297292,1739030957257,-501.37033738,0.00010269,2]
[352297293,1739030957288,-500.0,0.00010269,2]
[352297294,1739030957322,-500.0,0.00010269,2]
[352297295,1739030957357,-500.0,0.00010269,2]
[352297296,1739030957391,-500.0,0.00010269,2]
[352297297,1739030957421,-500.0,0.00010269,2]
[352297298,1739030957455,-500.0,0.00010269,2]
[352297299,1739030957485,-500.0,0.00010269,2]
[352297300,1739030957518,-461.11541533,0.00010269,2]
[352297301,1739030957553,-500.0,0.00010269,2]
[352297302,1739030957585,-677.68,0.00010269,2]
[352297303,1739030957618,-500.0,0.00010269,2]
[352297304,1739030957649,-858.21,0.00010269,2]
[352297305,1739030957681,-500.0,0.00010269,2]
[352297306,1739030957714,-500.0,0.00010269,2]
[352297307,1739030957747,-500.0,0.00010269,2]
[352297308,1739030957779,-500.0,0.00010269,2]
[352297309,1739030957811,-231.55938741,0.00010269,2]
[352297310,1739030957841,-500.0,0.00010269,2]
[352297311,1739030957873,-1067.51,0.00010269,2]
[352297312,1739030957906,-500.0,0.00010269,2]
[352297313,1739030957936,-500.0,0.00010269,2]
[352297314,1739030957967,-500.0,0.00010269,2]
[352297315,1739030957999,-1791.43,0.00010269,2]
[352297316,1739030958030,-500.0,0.00010269,2]
[352297317,1739030958066,-500.0,0.00010269,2]
[352297318,1739030958106,-500.0,0.00010269,2]
[352297319,1739030958141,-500.0,0.00010269,2]
[352297320,1739030958176,-500.0,0.00010269,2]
[352297321,1739030958215,-500.0,0.00010269,2]
[352297322,1739030958252,-1005.42,0.00010269,2]
[352297323,1739030958289,-500.0,0.00010269,2]
[352297324,1739030958325,-543.44336609,0.00010269,2]
[352297325,1739030958361,-500.0,0.00010269,2]
[352297326,1739030958397,-500.0,0.00010269,2]
[352297327,1739030958432,-500.0,0.00010269,2]
[352297328,1739030958469,-593.77,0.00010269,2]
[352297329,1739030958506,-500.0,0.00010269,2]
[352297330,1739030958545,-500.0,0.00010269,2]
[352297331,1739030958581,-1557.23,0.00010269,2]
[352297332,1739030958619,-500.0,0.00010269,2]
[352297333,1739030958656,-500.0,0.00010269,2]
[352297334,1739030958691,-500.0,0.00010269,2]
[352297335,1739030958729,-500.0,0.00010269,2]
[352297336,1739030958766,-500.0,0.00010269,2]
[352297337,1739030958802,-500.0,0.00010269,2]
[352297338,1739030958841,-500.0,0.00010269,2]
[352297339,1739030958880,-500.0,0.00010269,2]
[352297340,1739030958919,-786.32,0.00010269,2]
[352297341,1739030958955,-500.0,0.00010269,2]
[352297342,1739030958994,-500.0,0.00010269,2]
[352297343,1739030959027,-500.0,0.00010269,2]
[352297344,1739030959061,-1364.07,0.00010269,2]
[352297345,1739030959096,-500.0,0.00010269,2]
[352297346,1739030959134,-500.0,0.00010269,2]
[352297347,1739030959169,-500.0,0.00010269,2]
[352297348,1739030959204,-500.0,0.00010269,2]
[352297349,1739030959241,-500.0,0.00010269,2]
[352297350,1739030959278,-1086.9,0.00010269,2]
[352297351,1739030959314,-500.0,0.00010269,2]
[352297352,1739030959349,-269.98,0.00010269,2]
[352297353,1739030959385,-666.35,0.00010269,2]
[352297354,1739030959419,-500.0,0.00010269,2]
[352297355,1739030959455,-500.0,0.00010269,2]
[352297356,1739030959492,-500.0,0.00010269,2]
[352297357,1739030959530,-500.0,0.00010269,2]
[352297358,1739030959567,-500.0,0.00010269,2]
[352297359,1739030959610,-516.47994371,0.00010269,2]
[352297360,1739030959646,-500.0,0.00010269,2]
[352297361,1739030959680,-249.38529188,0.00010269,2]
[352297362,1739030959717,-500.0,0.00010269,2]
[352297363,1739030959755,-500.0,0.00010269,2]
[352297364,1739030959790,-501.46554205,0.00010269,2]
[352297365,1739030959830,-1801.26,0.00010269,2]
[352297366,1739030959866,-500.0,0.00010269,2]
[352297367,1739030959901,-1515.2,0.00010269,2]
[352297368,1739030959936,-500.0,0.00010269,2]
[352297369,1739030959971,-500.0,0.00010269,2]
[352297370,1739030960007,-500.0,0.00010269,2]
[352297371,1739030960045,-500.0,0.00010269,2]
[352297372,1739030960081,-500.0,0.00010269,2]
[352297373,1739030960118,-500.0,0.00010269,2]
[352297374,1739030960153,-500.0,0.00010269,2]
[352297375,1739030960191,-502.65447339,0.00010269,2]
[352297376,1739030960229,-500.0,0.00010269,2]
[352297377,1739030960265,-466.16998076,0.00010269,2]
[352297378,1739030960301,-500.0,0.00010269,2]
[352297379,1739030960338,-500.0,0.00010269,2]
[352297380,1739030960375,-500.0,0.00010269,2]
[352297381,1739030960413,-500.0,0.00010269,2]
[352297382,1739030960452,-501.60048675,0.00010269,2]
[352297383,1739030960489,-500.0,0.00010269,2]
[352297384,1739030960530,-500.0,0.00010269,2]
[352297385,1739030960570,-876.69,0.00010269,2]
[352297386,1739030960608,-500.0,0.00010269,2]
[352297387,1739030960645,-516.43,0.00010269,2]
[352297388,1739030960682,-500.0,0.00010269,2]
[352297389,1739030960720,-500.0,0.00010269,2]
[352297390,1739030960757,-311.65293962,0.00010269,2]
[352297391,1739030960794,-500.0,0.00010269,2]
[352297392,1739030960830,-500.0,0.00010269,2]
[352297393,1739030960867,-500.0,0.00010269,2]
[352297394,1739030960906,-500.0,0.00010269,2]
[352297395,1739030960943,-343.94064902,0.00010269,2]
[352297396,1739030960979,-500.0,0.00010269,2]
[352297397,1739030961015,-500.0,0.00010269,2]
[352297398,1739030961052,-1669.42,0.00010269,2]
[352297399,1739030961087,-500.0,0.00010269,2]
[352297400,1739030961123,-500.0,0.00010269,2]
[352297401,1739030961159,-505.45188928,0.00010269,2]
[352297402,1739030961195,-554.73019171,0.00010269,2]
[352297403,1739030961230,-500.0,0.00010269,2]
[352297404,1739030961266,-500.0,0.00010269,2]
[352297405,1739030961301,-500.0,0.00010269,2]
[352297406,1739030961337,-500.0,0.00010269,2]
[352297407,1739030961376,-500.0,0.00010269,2]
[352297408,1739030961414,-889.35,0.00010269,2]
[352297409,1739030961453,-500.0,0.00010269,2]
[352297410,1739030961490,-500.0,0.00010269,2]
[352297411,1739030961528,-500.0,0.0001027,2]
[352297412,1739030961566,-792.61,0.0001027,2]
[352297413,1739030961604,-500.0,0.0001027,2]
[352297414,1739030961642,-674.07,0.0001027,2]
[352297415,1739030961680,-1021.29,0.0001027,2]
[352297416,1739030961719,-552.47,0.0001027,2]
[352297417,1739030961757,-584.29,0.0001027,2]
[352297418,1739030961794,-1431.9,0.0001027,2]
[352297419,1739030961832,-3456.55,0.0001027,2]
[352297420,1739030961871,-500.0,0.0001027,2]
[352297421,1739030961911,-500.0,0.0001027,2]
[352297422,1739030961949,-500.0,0.0001027,2]
[352297423,1739030961994,-693.9,0.0001027,2]
[352297424,1739030962036,-835.82,0.0001027,2]
[352297425,1739030962073,-982.31,0.0001027,2]
[352297426,1739030962111,-1141.16,0.0001027,2]
[352297427,1739030962148,-518.36,0.0001027,2]
[352297428,1739030962186,-1000.0,0.0001027,2]
[352297429,1739030962224,-911.43,0.0001027,2]
[352297430,1739030962261,-1096.95,0.0001027,2]
[352297431,1739030962294,-500.0,0.0001027,2]
[352297432,1739030962326,-1291.89,0.0001027,2]